bitfinex/quotes_BTCUSD_20220213
["timestamp","ask_amount","ask_price","bid_price","bid_amount"]
[1644779725339,0.040393,42119.0,42118.0,7.18384682]
[1644779725542,0.03451542,42119.0,42118.0,7.18384682]
[1644779725791,0.218788,42119.0,42118.0,7.18384682]
[1644779727194,0.218788,42119.0,42118.0,7.18414682]
[1644779727393,0.1,42119.0,42118.0,7.18414682]
[1644779727792,0.05,42119.0,42118.0,7.18414682]
[1644779727991,0.17840271,42120.0,42118.0,7.18414682]
[1644779730041,0.17817,42120.0,42118.0,7.18414682]
[1644779730240,0.17840271,42120.0,42118.0,7.14638641]
[1644779730442,0.17840271,42120.0,42119.0,0.03776041]
[1644779730641,0.17840271,42120.0,42119.0,0.07552082]
[1644779730642,0.17817,42120.0,42119.0,0.07552082]
[1644779732451,0.00023271,42121.0,42119.0,0.07552082]
[1644779732647,0.2193739,42122.0,42120.0,0.23798605]
[1644779732946,0.00023271,42121.0,42120.0,0.23798605]
[1644779733147,0.1193739,42122.0,42120.0,0.23798605]
[1644779733387,0.11900371,42122.0,42120.0,0.23798605]
[1644779735388,0.11900371,42122.0,42120.0,0.23828605]
[1644779735790,0.11900371,42122.0,42121.0,0.03776041]
[1644779735991,0.118771,42122.0,42121.0,0.07552082]
[1644779740534,0.118771,42122.0,42121.0,0.07582082]
[1644779743989,0.118771,42122.0,42121.0,0.06174177]
[1644779744288,0.118771,42122.0,42121.0,0.03806041]
[1644779744536,0.118771,42122.0,42121.0,0.06174177]
[1644779747735,0.118771,42122.0,42121.0,5.03463377]
[1644779755042,0.059388,42122.0,42121.0,5.03463377]
[1644779757296,0.0009042,42123.0,42121.0,5.03463377]
[1644779757594,0.0009042,42123.0,42121.0,4.973192]
[1644779757793,0.0009042,42123.0,42122.0,0.02368136]
[1644779758093,0.16160856,42126.0,42124.0,0.25]
[1644779758299,0.00023272,42124.0,42122.0,0.06144177]
[1644779758595,0.00123272,42126.0,42122.0,0.06144177]
[1644779758792,0.00023272,42125.0,42122.0,0.06144177]
[1644779758995,0.001,42126.0,42122.0,0.06144177]
[1644779759292,0.00023272,42125.0,42123.0,0.333274]
[1644779759537,0.001,42126.0,42122.0,0.06144177]
[1644779759538,0.00123272,42126.0,42122.0,0.06144177]
[1644779759737,0.00023272,42125.0,42122.0,0.06144177]
[1644779759936,0.001,42126.0,42122.0,0.06144177]
[1644779760139,0.00023272,42125.0,42122.0,0.06144177]
[1644779760340,0.00123272,42126.0,42122.0,0.06144177]
[1644779760539,0.00123272,42126.0,42123.0,0.30511257]
[1644779760540,0.00023272,42125.0,42123.0,0.30511257]
[1644779760738,0.001,42126.0,42123.0,0.30511257]
[1644779760941,0.00023272,42125.0,42123.0,0.30511257]
[1644779761137,0.00123272,42126.0,42123.0,0.30511257]
[1644779761444,0.00023272,42125.0,42124.0,0.333274]
[1644779761640,0.001,42126.0,42125.0,0.70046543]
[1644779761840,0.001,42126.0,42125.0,0.32448886]
[1644779762037,0.001,42126.0,42125.0,0.65776286]
[1644779762239,0.0021,42128.0,42125.0,0.65776286]
[1644779762440,0.003,42135.0,42127.0,0.55]
[1644779762441,0.0011,42131.0,42127.0,0.55]
[1644779762639,0.0011,42131.0,42128.0,0.40241455]
[1644779762839,0.0011,42131.0,42126.0,0.333274]
[1644779763039,0.0011,42131.0,42128.0,0.02368136]
[1644779763287,0.0011,42131.0,42129.0,0.59494075]
[1644779767045,0.0011,42131.0,42129.0,0.59524075]
[1644779768140,0.2411,42131.0,42129.0,0.59524075]
[1644779768342,0.2411,42131.0,42130.0,0.02368136]
[1644779768545,0.2411,42131.0,42130.0,0.39471577]
[1644779769344,0.2411,42131.0,42130.0,0.67115933]
[1644779769543,0.0031,42132.0,42130.0,0.75193052]
[1644779769747,0.0031,42132.0,42131.0,0.29478221]
[1644779769945,0.003,42136.0,42132.0,0.333274]
[1644779770992,0.003,42136.0,42133.0,0.30492279]
[1644779771197,0.003,42136.0,42134.0,0.333274]
[1644779772094,0.0071477,42137.0,42134.0,0.333274]
[1644779772295,0.00036544,42137.0,42134.0,0.333274]
[1644779772693,0.00036544,42137.0,42134.0,0.19921808]
[1644779773699,0.00036544,42137.0,42136.0,0.271132]
[1644779773895,0.00036544,42137.0,42136.0,0.64216641]
[1644779775163,0.00173088,42143.0,42136.0,0.64216641]
[1644779775759,0.0052,42147.0,42136.0,0.64216641]
[1644779775958,0.0052,42147.0,42138.0,0.333146]
[1644779776364,0.0052,42147.0,42140.0,0.333146]
[1644779776561,0.001,42147.0,42140.0,0.333146]
[1644779778996,0.006,42150.0,42145.0,0.08338163]
[1644779779192,0.24,42147.0,42146.0,0.333146]
[1644779779394,0.19357029,42147.0,42146.0,0.333146]
[1644779779993,0.19291029,42147.0,42146.0,0.56679049]
[1644779780194,0.19291029,42147.0,42146.0,0.23364449]
[1644779780195,0.17812758,42147.0,42146.0,0.23364449]
[1644779780395,0.0805617,42147.0,42146.0,0.85889693]
[1644779780794,0.0805617,42147.0,42146.0,0.56679049]
[1644779780995,0.0805617,42147.0,42146.0,0.61679049]
[1644779780996,0.06357139,42147.0,42146.0,0.61679049]
[1644779781403,0.06357139,42147.0,42146.0,0.66679049]
[1644779782647,0.00050522,42161.0,42148.0,0.8]
[1644779782849,0.00017904,42156.0,42149.0,0.333146]
[1644779783249,0.00136903,42155.0,42149.0,0.333146]
[1644779784048,0.00017904,42156.0,42154.0,0.25580124]
[1644779785649,0.00017904,42156.0,42155.0,0.333146]
[1644779786093,0.00017904,42156.0,42154.0,0.25580124]
[1644779786491,0.00017904,42156.0,42154.0,0.25610124]
[1644779787192,0.00017904,42156.0,42155.0,0.333146]
[1644779787392,0.00017904,42156.0,42155.0,0.27895119]
[1644779787592,0.00017904,42156.0,42154.0,0.25610124]
[1644779787798,0.00017904,42156.0,42155.0,0.61472341]
[1644779788193,0.015,42159.0,42156.0,0.75]
[1644779788394,0.015,42159.0,42157.0,0.633146]
[1644779788793,0.015,42159.0,42158.0,0.40426576]
[1644779788994,0.01104948,42159.0,42158.0,0.40426576]
[1644779789647,0.01104948,42159.0,42158.0,0.42794712]
[1644779789842,0.01104948,42159.0,42158.0,0.46570753]
[1644779791544,0.24104948,42159.0,42158.0,0.46570753]
[1644779791744,0.24104948,42159.0,42158.0,0.46600753]
[1644779792545,0.24104948,42159.0,42158.0,0.39488777]
[1644779792746,0.24104948,42159.0,42158.0,0.06174177]
[1644779793292,0.24104948,42159.0,42158.0,0.39488777]
[1644779793692,0.24104948,42159.0,42158.0,0.48144817]
[1644779795694,0.24104948,42159.0,42158.0,0.39488777]
[1644779795897,0.24104948,42159.0,42158.0,0.06174177]
[1644779795898,0.37522448,42159.0,42158.0,0.06174177]
[1644779796198,0.88455748,42159.0,42158.0,0.06174177]
[1644779796397,1.03215748,42159.0,42158.0,0.06174177]
[1644779796796,1.56545367,42159.0,42158.0,0.06174177]
[1644779797054,1.26545367,42159.0,42158.0,0.06174177]
[1644779797251,0.99711913,42159.0,42158.0,0.06174177]
[1644779797448,0.88778613,42159.0,42158.0,0.06174177]
[1644779797653,0.48864948,42159.0,42158.0,0.06174177]
[1644779797852,0.62282448,42159.0,42158.0,0.06174177]
[1644779798250,0.88520212,42159.0,42158.0,0.06174177]
[1644779798450,1.16518387,42159.0,42158.0,0.06174177]
[1644779798652,1.43012083,42159.0,42158.0,0.06174177]
[1644779798855,1.16774319,42159.0,42158.0,0.06174177]
[1644779799052,0.78776144,42159.0,42158.0,0.06174177]
[1644779799451,0.52282448,42159.0,42158.0,0.06174177]
[1644779799859,0.82760845,42159.0,42158.0,0.06174177]
[1644779800455,1.03896778,42159.0,42158.0,0.06174177]
[1644779800655,0.83418381,42159.0,42158.0,0.06174177]
[1644779800892,0.88418381,42159.0,42158.0,0.06174177]
[1644779801093,0.83418381,42159.0,42158.0,0.06174177]
[1644779801294,0.62282448,42159.0,42158.0,0.06174177]
[1644779801893,0.60782448,42159.0,42158.0,0.06174177]
[1644779802499,0.28864948,42159.0,42158.0,0.06174177]
[1644779803097,0.42282448,42159.0,42158.0,0.06174177]
[1644779803296,0.28864948,42159.0,42158.0,0.06174177]
[1644779804097,0.28864948,42159.0,42158.0,0.05674177]
[1644779804297,0.28864948,42159.0,42158.0,0.03806041]
[1644779804298,0.24104948,42159.0,42158.0,0.03806041]
[1644779804551,0.24104948,42159.0,42158.0,0.05674177]
[1644779804741,0.42522448,42159.0,42158.0,0.05674177]
[1644779804940,0.52522448,42159.0,42158.0,0.05674177]
[1644779805341,0.39104948,42159.0,42158.0,0.05674177]
[1644779805543,0.52522448,42159.0,42158.0,0.05674177]
[1644779805741,0.75263403,42159.0,42158.0,0.05674177]
[1644779806140,0.61845903,42159.0,42158.0,0.05674177]
[1644779807646,0.66605903,42159.0,42158.0,0.05674177]
[1644779808043,0.05199179,42159.0,42158.0,0.05674177]
[1644779808298,0.181775,42159.0,42158.0,0.05674177]
[1644779808498,0.0476,42159.0,42158.0,0.05674177]
[1644779809901,0.00123355,42160.0,42158.0,0.05674177]
[1644779810102,0.00123355,42160.0,42159.0,0.28702907]
[1644779810310,0.001,42160.0,42159.0,0.28702907]
[1644779810606,0.001,42160.0,42159.0,0.33601134]
[1644779810902,0.001,42160.0,42159.0,0.05644177]
[1644779811701,0.001,42160.0,42159.0,0.35770827]
[1644779811907,0.001,42160.0,42158.0,0.333446]
[1644779812145,0.00123355,42160.0,42158.0,0.333446]
[1644779814750,0.00123355,42160.0,42158.0,0.0003]
[1644779815253,0.26065586,42160.0,42158.0,0.0003]
[1644779815453,0.26092305,42160.0,42158.0,0.0003]
[1644779815649,0.31092305,42160.0,42158.0,0.0003]
[1644779815893,0.27105669,42159.0,42158.0,0.0003]
[1644779816491,0.33372273,42160.0,42158.0,0.0003]
[1644779816889,0.09623355,42160.0,42158.0,0.0003]
[1644779817090,0.00023472,42160.0,42158.0,0.0003]
[1644779817291,0.00106159,42161.0,42158.0,0.0003]
[1644779817591,0.00023472,42160.0,42158.0,0.0003]
[1644779817790,0.00073994,42161.0,42158.0,0.0003]
[1644779817993,0.00023472,42160.0,42158.0,0.0003]
[1644779818191,0.00073994,42161.0,42158.0,0.0003]
[1644779818397,0.00023472,42160.0,42158.0,0.0003]
[1644779818591,0.00073994,42161.0,42158.0,0.0003]
[1644779818791,0.00023472,42160.0,42158.0,0.0003]
[1644779818990,0.00073994,42161.0,42158.0,0.0003]
[1644779819190,0.00023472,42160.0,42158.0,0.0003]
[1644779819389,0.00073994,42161.0,42158.0,0.0003]
[1644779819644,0.00023472,42160.0,42150.0,0.11572181]
[1644779819844,0.00073994,42161.0,42151.0,0.333146]
[1644779820047,0.00023472,42160.0,42152.0,0.29230072]
[1644779820246,0.00073994,42161.0,42154.0,0.20066575]
[1644779820446,0.00023472,42160.0,42155.0,0.333146]
[1644779820846,0.00050522,42161.0,42155.0,0.333146]
[1644779821046,0.00023472,42160.0,42155.0,0.333146]
[1644779821247,0.00073994,42161.0,42155.0,0.333146]
[1644779821447,0.00023472,42160.0,42155.0,0.333146]
[1644779821648,0.00073994,42161.0,42155.0,0.333146]
[1644779821849,0.00073994,42161.0,42155.0,0.61893382]
[1644779821850,0.00023472,42160.0,42155.0,0.61893382]
[1644779822049,0.00050522,42161.0,42155.0,0.61893382]
[1644779822249,0.00023472,42160.0,42155.0,0.61893382]
[1644779822451,0.00050522,42161.0,42155.0,0.61893382]
[1644779822649,0.00037319,42160.0,42155.0,0.61893382]
[1644779823593,0.00023472,42160.0,42155.0,0.61893382]
[1644779823794,0.00050522,42161.0,42155.0,0.61893382]
[1644779823996,0.00059583,42160.0,42155.0,0.61893382]
[1644779824292,0.00059583,42160.0,42155.0,0.62261928]
[1644779824494,0.00059583,42160.0,42155.0,0.333146]
[1644779824695,0.00036111,42160.0,42155.0,0.333146]
[1644779824996,0.00023472,42160.0,42155.0,0.333146]
[1644779825195,0.00023472,42160.0,42151.0,0.31651065]
[1644779825196,0.00036111,42160.0,42151.0,0.31651065]
[1644779825399,0.00036111,42160.0,42152.0,0.333146]
[1644779825596,0.00059583,42160.0,42152.0,0.333146]
[1644779825798,0.00059583,42160.0,42152.0,0.59053989]
[1644779825996,0.00023472,42160.0,42152.0,0.59053989]
[1644779826196,0.00036112,42158.0,42152.0,0.59053989]
[1644779826495,0.00036112,42158.0,42155.0,12.070968]
[1644779827244,0.00023472,42160.0,42155.0,12.070968]
[1644779827445,0.00036112,42159.0,42155.0,12.070968]
[1644779828450,0.00023472,42160.0,42155.0,12.070968]
[1644779828645,0.00035593,42159.0,42155.0,12.070968]
[1644779829747,0.00023472,42160.0,42155.0,12.070968]
[1644779829945,0.00050522,42161.0,42155.0,12.070968]
[1644779829946,0.00035593,42159.0,42155.0,12.070968]
[1644779830899,0.00023472,42160.0,42155.0,12.070968]
[1644779831102,0.00035593,42159.0,42155.0,12.070968]
[1644779831799,0.0476,42158.0,42155.0,12.070968]
[1644779832001,0.04783472,42158.0,42155.0,12.070968]
[1644779832200,0.0476,42158.0,42155.0,12.070968]
[1644779832602,0.04783472,42158.0,42155.0,12.070968]
[1644779833401,0.0476,42158.0,42155.0,12.070968]
[1644779833802,0.04783472,42158.0,42155.0,12.070968]
[1644779834645,0.0476,42158.0,42155.0,12.070968]
[1644779834846,0.04783472,42158.0,42155.0,12.070968]
[1644779835349,0.04783472,42158.0,42156.0,0.28123906]
[1644779835559,0.00035669,42159.0,42158.0,0.09566943]
[1644779835747,0.00050522,42161.0,42158.0,0.09566943]
[1644779835947,0.0001143,42159.0,42158.0,0.09566943]
[1644779836948,0.00023575,42160.0,42158.0,0.09566943]
[1644779837146,0.00085527,42161.0,42158.0,0.09566943]
[1644779837347,0.00101044,42161.0,42158.0,0.09566943]
[1644779837950,0.06033844,42161.0,42158.0,0.09566943]
[1644779838396,0.00101044,42161.0,42158.0,0.09566943]
[1644779839095,0.06033844,42161.0,42158.0,0.09566943]
[1644779840203,0.00101044,42161.0,42158.0,0.09566943]
[1644779843450,0.06033844,42161.0,42158.0,0.09566943]
[1644779843851,0.06033844,42161.0,42160.0,0.08116642]
[1644779843852,0.00101044,42161.0,42160.0,0.08116642]
[1644779845453,0.00101044,42161.0,42160.0,0.41431242]
[1644779845654,0.00101044,42161.0,42160.0,0.08116642]
[1644779846496,0.00101044,42161.0,42160.0,0.41431242]
[1644779847396,0.00101044,42161.0,42160.0,0.70261198]
[1644779848395,0.00101044,42161.0,42160.0,0.70328846]
[1644779849852,0.0041,42165.0,42161.0,1.283146]
[1644779849853,0.002,42165.0,42161.0,1.283146]
[1644779850055,0.0111,42168.0,42162.0,0.55]
[1644779850056,0.0011,42168.0,42162.0,0.55]
[1644779850252,0.0011,42168.0,42164.0,0.24900428]
[1644779850451,0.0011,42168.0,42165.0,0.333146]
[1644779850654,0.0011,42168.0,42165.0,0.33382248]
[1644779850851,0.00133603,42168.0,42165.0,0.33382248]
[1644779851052,0.00133603,42168.0,42166.0,0.059296]
[1644779851253,0.00033603,42168.0,42167.0,0.333146]
[1644779851456,0.0001,42168.0,42167.0,0.33382248]
[1644779851657,0.01344293,42169.0,42168.0,0.9]
[1644779851658,0.00074293,42169.0,42168.0,0.9]
[1644779851857,0.0005069,42169.0,42168.0,0.33382248]
[1644779852054,4.293e-05,42172.0,42169.0,0.95]
[1644779852255,4.293e-05,42172.0,42170.0,0.29974402]
[1644779852454,4.293e-05,42172.0,42171.0,0.333146]
[1644779852654,4.293e-05,42172.0,42171.0,0.33382248]
[1644779852854,4.293e-05,42172.0,42171.0,0.6376927]
[1644779853054,4.293e-05,42172.0,42171.0,0.62875613]
[1644779853299,0.0021,42174.0,42172.0,0.3]
[1644779853300,0.51954293,42173.0,42172.0,0.3]
[1644779853502,0.0021,42174.0,42172.0,0.61524853]
[1644779853701,0.0021,42174.0,42173.0,0.62019023]
[1644779853899,0.0021,42174.0,42173.0,0.62086669]
[1644779856308,0.00038216,42176.0,42175.0,0.95]
[1644779856510,0.00038216,42176.0,42175.0,0.72498567]
[1644779857345,0.0032789,42180.0,42176.0,0.333146]
[1644779857546,0.0032789,42180.0,42176.0,0.392429]
[1644779857547,0.00038215,42178.0,42176.0,0.392429]
[1644779857744,0.00038215,42178.0,42177.0,0.29209813]
[1644779857944,0.00038215,42178.0,42177.0,0.333146]
[1644779858547,0.0032789,42180.0,42175.0,0.333146]
[1644779858744,0.00366104,42180.0,42175.0,0.333146]
[1644779859752,0.0032789,42180.0,42177.0,0.333146]
[1644779859948,0.00366104,42180.0,42177.0,0.333146]
[1644779860998,0.0032789,42180.0,42178.0,0.24987131]
[1644779861195,0.0032789,42180.0,42179.0,0.6344757]
[1644779862500,0.002,42181.0,42180.0,0.7]
[1644779862501,0.001,42181.0,42180.0,0.7]
[1644779862697,0.001,42181.0,42180.0,0.67325635]
[1644779865550,0.00103078,42186.0,42184.0,0.01582903]
[1644779865749,0.00175838,42186.0,42185.0,0.333146]
[1644779865950,0.00175838,42186.0,42185.0,0.55837365]
[1644779866952,0.00175838,42186.0,42185.0,0.84819234]
[1644779867150,0.00175838,42187.0,42185.0,0.55837365]
[1644779867551,0.00175838,42187.0,42186.0,0.3614698]
[1644779867754,0.00175838,42187.0,42186.0,0.6946158]
[1644779868902,0.52149433,42188.0,42186.0,0.6946158]
[1644779869103,0.00023595,42188.0,42187.0,0.63832396]
[1644779869301,0.01023595,42189.0,42187.0,0.63832396]
[1644779869601,0.01061803,42189.0,42188.0,0.2811721]
[1644779869801,0.01038208,42189.0,42188.0,0.6143181]
[1644779870604,0.01038208,42189.0,42188.0,0.333146]
[1644779870605,0.01,42189.0,42188.0,0.333146]
[1644779870803,0.144175,42189.0,42184.0,0.01582903]
[1644779871109,0.19201095,42189.0,42184.0,0.01582903]
[1644779871304,0.05783595,42189.0,42184.0,0.01582903]
[1644779871504,0.27685013,42189.0,42184.0,0.01582903]
[1644779871702,0.27685013,42189.0,42187.0,0.07910319]
[1644779871904,0.27685013,42189.0,42184.0,0.01582903]
[1644779871905,0.22774027,42188.0,42184.0,0.01582903]
[1644779872155,0.00023595,42188.0,42184.0,0.01582903]
[1644779872355,0.05821804,42189.0,42185.0,0.333146]
[1644779872553,0.00023595,42188.0,42184.0,0.01582903]
[1644779872754,0.05821804,42189.0,42184.0,0.01582903]
[1644779872960,0.26549713,42188.0,42185.0,0.333146]
[1644779873155,0.00038209,42188.0,42185.0,0.333146]
[1644779873357,0.00061804,42188.0,42185.0,0.333146]
[1644779873756,0.26002811,42188.0,42184.0,0.01582903]
[1644779873956,0.25979216,42188.0,42185.0,0.333146]
[1644779874258,0.25964603,42188.0,42185.0,0.333146]
[1644779874458,0.00058001,42188.0,42185.0,0.333146]
[1644779875463,0.00058001,42188.0,42184.0,0.01582903]
[1644779875464,0.00023596,42188.0,42184.0,0.01582903]
[1644779875798,0.0576,42189.0,42184.0,0.01582903]
[1644779875799,0.05818001,42189.0,42184.0,0.01582903]
[1644779876000,0.00023596,42188.0,42184.0,0.01582903]
[1644779876200,0.05818001,42189.0,42184.0,0.01582903]
[1644779876502,0.00023596,42188.0,42185.0,0.333146]
[1644779876701,0.01058001,42189.0,42185.0,0.333146]
[1644779876902,0.00023596,42188.0,42185.0,0.333146]
[1644779877102,0.01058001,42189.0,42185.0,0.333146]
[1644779877300,0.00023596,42188.0,42185.0,0.333146]
[1644779877501,0.01034405,42189.0,42185.0,0.333146]
[1644779877502,0.01058001,42189.0,42185.0,0.333146]
[1644779877703,0.00023596,42188.0,42185.0,0.333146]
[1644779877901,0.01023596,42189.0,42185.0,0.333146]
[1644779878105,0.01058,42189.0,42185.0,0.333146]
[1644779878300,0.01058,42189.0,42185.0,0.313146]
[1644779878904,0.01023596,42189.0,42185.0,0.313146]
[1644779879103,0.01023596,42189.0,42187.0,0.333146]
[1644779879303,0.01037604,42189.0,42187.0,0.333146]
[1644779880150,0.01023596,42189.0,42187.0,0.55351651]
[1644779880350,0.01023596,42189.0,42188.0,0.3051971]
[1644779880552,0.01,42189.0,42188.0,0.6379861]
[1644779880756,0.16904976,42192.0,42187.0,0.22037051]
[1644779880757,0.00247604,42192.0,42189.0,0.332789]
[1644779880955,0.00023735,42190.0,42189.0,0.332789]
[1644779881152,0.00247604,42192.0,42189.0,0.332789]
[1644779881353,0.00023735,42191.0,42189.0,0.332789]
[1644779881552,0.00247604,42192.0,42189.0,0.392054]
[1644779881751,0.00023735,42191.0,42190.0,0.332789]
[1644779881953,0.00247604,42192.0,42190.0,0.332789]
[1644779882354,0.00271339,42192.0,42190.0,0.332789]
[1644779882554,0.00271339,42192.0,42191.0,0.059265]
[1644779882751,0.00271339,42192.0,42191.0,0.392054]
[1644779882752,0.00247604,42192.0,42191.0,0.392054]
[1644779883602,0.00247604,42192.0,42191.0,0.292054]
[1644779884103,0.00447604,42192.0,42191.0,0.292054]
[1644779884302,0.00447604,42192.0,42191.0,0.351319]
[1644779885303,0.00447604,42192.0,42191.0,0.292054]
[1644779887254,0.00058792,42197.0,42196.0,0.08287944]
[1644779887456,0.00173268,42197.0,42196.0,0.332762]
[1644779887956,0.00173268,42197.0,42189.0,0.332762]
[1644779890055,0.251812,42194.0,42188.0,0.332762]
[1644779890256,0.251812,42194.0,42187.0,0.00034927]
[1644779890463,0.0476,42193.0,42187.0,0.00034927]
[1644779890910,0.0476,42193.0,42184.0,0.01582903]
[1644779890911,0.04818792,42193.0,42184.0,0.01582903]
[1644779891111,0.04818792,42193.0,42187.0,0.00034926]
[1644779891315,0.26749033,42192.0,42187.0,0.00034926]
[1644779891514,0.0476,42191.0,42187.0,0.00034926]
[1644779892114,0.0476,42191.0,42184.0,0.08065471]
[1644779892313,0.0476,42191.0,42187.0,0.00034926]
[1644779893315,0.0476,42191.0,42184.0,0.01582903]
[1644779893516,0.26027817,42187.0,42185.0,0.332762]
[1644779894118,0.26027817,42187.0,42184.0,0.01582903]
[1644779894318,0.4976,42186.0,42184.0,0.01582903]
[1644779894566,0.99940949,42184.0,42180.0,0.00067634]
[1644779894756,0.194969,42182.0,42180.0,0.00067634]
[1644779894954,0.2809203,42181.0,42180.0,0.00067634]
[1644779895154,0.0859513,42181.0,42180.0,0.00067634]
[1644779895554,0.4,42182.0,42181.0,0.17190259]
[1644779895754,0.61809741,42181.0,42180.0,0.00067634]
[1644779895956,0.11569741,42181.0,42180.0,0.00067634]
[1644779896155,0.21569741,42181.0,42180.0,0.00067634]
[1644779896560,0.11569741,42181.0,42180.0,0.00067634]
[1644779896758,0.41033102,42181.0,42180.0,0.00067634]
[1644779896959,0.51033102,42181.0,42180.0,0.00067634]
[1644779897158,0.37500041,42181.0,42180.0,0.00067634]
[1644779897357,0.56996941,42181.0,42180.0,0.00067634]
[1644779897758,0.37500041,42181.0,42180.0,0.00067634]
[1644779899602,0.27500041,42181.0,42180.0,0.00067634]
[1644779899800,0.37500041,42181.0,42180.0,0.00067634]
[1644779902056,0.27500041,42181.0,42180.0,0.00067634]
[1644779902258,1.63300041,42181.0,42180.0,0.00067634]
[1644779902457,2.10305381,42181.0,42180.0,0.00067634]
[1644779902659,2.26103152,42181.0,42180.0,0.00067634]
[1644779903057,2.21027812,42181.0,42180.0,0.00067634]
[1644779903257,2.21977412,42181.0,42180.0,0.00067634]
[1644779904059,0.96177412,42181.0,42180.0,0.00067634]
[1644779904463,0.80379641,42181.0,42180.0,0.00067634]
[1644779905160,0.059311,42175.0,42158.0,1.64070414]
[1644779905360,0.31894414,42174.0,42158.0,1.43886943]
[1644779905831,0.41894414,42174.0,42158.0,1.43886943]
[1644779906029,0.2421793,42171.0,42161.0,0.07735693]
[1644779906229,0.106916,42170.0,42162.0,0.332762]
[1644779906430,0.42779914,42170.0,42158.0,1.05966943]
[1644779906633,0.36848414,42170.0,42158.0,1.05966943]
[1644779906931,0.50916814,42170.0,42158.0,1.05966943]
[1644779907134,0.059322,42168.0,42158.0,0.09566943]
[1644779907432,0.0476,42167.0,42158.0,0.09566943]
[1644779907730,0.059327,42166.0,42158.0,0.09566943]
[1644779907929,0.0476,42165.0,42158.0,0.09566943]
[1644779908131,0.2675027,42164.0,42158.0,0.09566943]
[1644779908331,0.2675027,42164.0,42159.0,0.332762]
[1644779908530,0.0476,42164.0,42159.0,0.332762]
[1644779908834,0.254295,42163.0,42158.0,0.09566943]
[1644779909033,0.194969,42161.0,42158.0,0.09566943]
[1644779909233,0.0476,42160.0,42159.0,0.0003844]
[1644779909853,0.0476,42160.0,42159.0,0.08694432]
[1644779910054,0.0476,42160.0,42159.0,0.0003844]
[1644779910252,0.0476,42160.0,42158.0,0.09566943]
[1644779910452,0.0476,42160.0,42158.0,0.09066943]
[1644779912952,0.0476,42160.0,42159.0,0.41047029]
[1644779913156,0.2876,42160.0,42159.0,0.41047029]
[1644779913406,0.24,42160.0,42159.0,0.41047029]
[1644779914205,0.235,42160.0,42159.0,0.41047029]
[1644779917564,0.235,42160.0,42159.0,0.76047029]
[1644779917756,0.235,42160.0,42159.0,0.51047029]
[1644779919358,0.235,42160.0,42159.0,0.41047029]
[1644779919756,0.235,42160.0,42159.0,0.68954901]
[1644779920801,0.235,42160.0,42159.0,0.78954901]
[1644779921202,0.1138,42172.0,42160.0,0.43808259]
[1644779921405,0.1138,42172.0,42171.0,0.332762]
[1644779921603,0.159304,42176.0,42170.0,0.06486699]
[1644779921802,0.159304,42176.0,42172.0,0.332762]
[1644779922106,0.218611,42176.0,42170.0,0.06486699]
[1644779922502,0.118611,42176.0,42172.0,0.00038433]
[1644779923103,0.059307,42175.0,42172.0,0.00038433]
[1644779923503,0.059307,42175.0,42162.0,0.30709876]
[1644779923703,0.05931,42173.0,42171.0,0.00038433]
[1644779924657,0.24,42175.0,42172.0,0.332762]
[1644779925055,0.24,42175.0,42171.0,0.332762]
[1644779925456,0.24,42175.0,42172.0,0.20153177]
[1644779926456,0.24,42175.0,42171.0,0.00038433]
[1644779926657,0.24,42175.0,42172.0,0.332762]
[1644779926855,0.24,42175.0,42171.0,0.00038433]
[1644779927155,0.24,42175.0,42169.0,0.07638633]
[1644779927357,0.25869633,42172.0,42171.0,0.00038433]
[1644779927556,0.44621565,42175.0,42172.0,0.27974883]
[1644779928056,0.33726275,42175.0,42172.0,0.27974883]
[1644779929117,0.23726275,42175.0,42172.0,0.27974883]
[1644779929315,0.33726275,42175.0,42172.0,0.27974883]
[1644779930317,0.23726275,42175.0,42172.0,0.27974883]
[1644779930719,0.059306,42174.0,42172.0,0.27974883]
[1644779930919,0.23726275,42175.0,42173.0,0.332762]
[1644779931818,0.23726275,42175.0,42172.0,0.27974883]
[1644779932069,0.23726275,42175.0,42174.0,0.24558001]
[1644779932258,0.23726275,42175.0,42174.0,0.88086414]
[1644779933063,0.23726275,42175.0,42174.0,0.57879332]
[1644779933259,0.23726275,42175.0,42174.0,0.00045131]
[1644779934359,0.23726275,42175.0,42174.0,0.33321331]
[1644779934961,0.23726275,42175.0,42174.0,0.32851406]
[1644779936006,0.10502372,42182.0,42175.0,0.7]
[1644779936205,0.00038364,42188.0,42175.0,0.7]
[1644779936206,0.00038364,42188.0,42176.0,0.332762]
[1644779936406,0.5245,42185.0,42181.0,0.40904619]
[1644779936605,0.5245,42185.0,42181.0,0.40934694]
[1644779936807,0.52473754,42185.0,42181.0,0.40934694]
[1644779937203,0.5245,42185.0,42181.0,0.40934694]
[1644779937805,0.5245,42185.0,42181.0,0.33314975]
[1644779938403,0.5245,42185.0,42181.0,0.32314975]
[1644779938604,0.52473754,42185.0,42181.0,0.32314975]
[1644779938804,0.5245,42185.0,42184.0,0.332849]
[1644779939007,0.5245,42185.0,42184.0,0.33314975]
[1644779944905,0.5245,42185.0,42184.0,0.33314973]
[1644779947556,0.7645,42185.0,42184.0,0.33314973]
[1644779948353,0.7645,42185.0,42184.0,0.32814973]
[1644779951203,0.7645,42185.0,42184.0,0.33311373]
[1644779951803,0.7645,42185.0,42184.0,0.00030073]
[1644779961121,0.97972538,42185.0,42184.0,0.00030073]
[1644779961523,1.03901938,42185.0,42184.0,0.00030073]
[1644779964459,1.39826631,42185.0,42184.0,0.00030073]
[1644779964660,0.8645,42185.0,42184.0,0.00030073]
[1644779970756,1.1230191,42185.0,42184.0,0.00030073]
[1644779971154,1.1230191,42185.0,42184.0,0.00021316]
[1644779971354,1.1230191,42185.0,42184.0,0.00027177]
[1644779971755,0.8645,42185.0,42184.0,0.00027177]
[1644779974007,1.12386334,42185.0,42184.0,0.00027177]
[1644779975409,0.8645,42185.0,42184.0,0.00027177]
[1644779976808,1.12107894,42185.0,42184.0,1.77e-06]
[1644779977086,1.48318994,42185.0,42184.0,1.77e-06]
[1644779977476,2.74118994,42185.0,42184.0,1.77e-06]
[1644779978677,2.89882534,42185.0,42184.0,1.77e-06]
[1644779978874,2.68431434,42185.0,42184.0,1.77e-06]
[1644779979274,2.93262431,42185.0,42184.0,1.77e-06]
[1644779979875,1.67462431,42185.0,42184.0,1.77e-06]
[1644779980677,1.88913531,42185.0,42184.0,1.77e-06]
[1644779980913,1.67462431,42185.0,42184.0,1.77e-06]
[1644779981310,1.49081434,42185.0,42184.0,1.77e-06]
[1644779983614,1.70532534,42185.0,42184.0,1.77e-06]
[1644779983814,1.49081434,42185.0,42184.0,1.77e-06]